bitfinex/quotes_SOLUSD_20250817
["timestamp","ask_amount","ask_price","bid_price","bid_amount"]
[1755398477869,4.25011035,190.21,190.2,36.98]
[1755398478597,7.4451239,190.21,190.19,79.89999998]
[1755398478890,3.19501355,190.21,190.2,36.98]
[1755398479088,6.73589611,190.21,190.2,36.98]
[1755398479263,7.44589611,190.21,190.2,36.98]
[1755398479661,4.25088256,190.21,190.19,79.89999998]
[1755398479886,4.25088256,190.2,190.19,116.87999998]
[1755398480889,4.25088256,190.2,190.19,122.13789997]
[1755398481785,4.48446662,190.25,190.19,122.13789997]
[1755398481786,0.71,190.22,190.19,122.13789997]
[1755398481966,4.25210676,190.21,190.19,42.23789999]
[1755398482295,0.71,190.21,190.19,42.23789999]
[1755398486300,3.54587692,190.2,190.19,42.23789999]
[1755398490916,0.06,190.22,190.2,15.10621557]
[1755398491206,0.06,190.22,190.21,54.13111547]
[1755398491410,0.79055791,190.26,190.21,54.65111547]
[1755398491630,4.42446662,190.34,190.33,26.0]
[1755398491778,6.46936652,190.44,190.34,15.10621557]
[1755398491976,0.71,190.41,190.35,36.98]
[1755398492292,2.0448999,190.36,190.27,2.0448999]
[1755398492493,7.74968064,190.44,190.36,15.10621557]
[1755398492788,7.74968064,190.44,190.3,8.1795996]
[1755398492789,0.06487851,190.64,190.53,26.0]
[1755398493001,5.982365,190.7,190.53,26.0]
[1755398493002,5.982365,190.7,190.64,2.67082494]
[1755398493305,37.88,190.72,190.64,2.67082494]
[1755398493484,2.0448999,190.68,190.65,3.46407828]
[1755398493688,2.0448999,190.68,190.64,2.67082494]
[1755398493689,13.48746253,190.74,190.66,3.46407828]
[1755398493911,2.0448999,190.67,190.64,2.67082494]
[1755398494079,10.0,190.68,190.65,2.73254814]
[1755398494274,47.86,190.73,190.57,0.71]
[1755398494481,26.0,190.69,190.58,3.79118745]
[1755398494697,0.71,190.68,190.57,0.71]
[1755398495006,5.24466355,190.67,190.54,0.71]
[1755398495213,0.06487851,190.74,190.66,3.18118637]
[1755398495374,0.06487851,190.74,190.67,38.81]
[1755398495795,0.06487851,190.74,190.66,3.18118637]
[1755398495796,3.89118637,190.73,190.66,3.18118637]
[1755398495976,0.71,190.72,190.67,3.18118637]
[1755398496192,0.06487851,190.74,190.71,3.18118637]
[1755398496512,3.18118637,190.72,190.62,39.83]
[1755398496685,0.71,190.71,190.65,3.18118637]
[1755398496884,6.01765724,190.74,190.68,3.18118637]
[1755398497087,3.18118637,190.73,190.66,3.89118637]
[1755398497305,3.18118637,190.71,190.64,3.18118637]
[1755398497611,0.71,190.72,190.66,3.18118637]
[1755398497786,3.18118637,190.71,190.65,3.89118637]
[1755398498276,0.06487851,190.74,190.68,3.18118637]
[1755398498473,0.06487851,190.74,190.71,3.18118637]
[1755398498674,0.06487851,190.74,190.72,3.89118637]
[1755398498917,0.06487851,190.74,190.73,3.89118637]
[1755398499289,0.06487851,190.74,190.73,0.71]
[1755398499602,0.06487851,190.74,190.72,3.18118637]
[1755398499603,0.77487851,190.74,190.67,0.71]
[1755398499808,3.18118637,190.71,190.65,3.18118637]
[1755398500013,3.18118637,190.71,190.65,3.89118637]
[1755398500193,3.18118637,190.72,190.66,3.18118637]
[1755398500398,3.18118637,190.71,190.65,3.89118637]
[1755398500594,3.18118637,190.69,190.65,0.71]
[1755398500797,0.71,190.68,190.62,3.89118637]
[1755398500994,3.89118637,190.68,190.62,3.89118637]
[1755398501518,3.18118637,190.68,190.62,3.89118637]
[1755398502023,5.95390981,190.7,190.62,3.89118637]
[1755398502232,0.12487851,190.74,190.65,3.18118637]
[1755398502427,0.83487851,190.74,190.67,3.18118637]
[1755398502640,3.18118637,190.71,190.66,0.71]
[1755398502799,3.18118637,190.71,190.66,3.89118637]
[1755398503120,3.18118637,190.72,190.67,0.71]
[1755398503504,3.18118637,190.7,190.64,3.89118637]
[1755398503825,0.71,190.71,190.65,3.18118637]
[1755398504001,3.89118637,190.71,190.65,3.18118637]
[1755398504527,0.12487851,190.74,190.66,3.18118637]
[1755398504695,3.18118637,190.73,190.67,3.90118637]
[1755398504896,0.81487851,190.74,190.67,3.90118637]
[1755398505305,6.05776108,190.74,190.67,0.72]
[1755398505522,3.18118637,190.72,190.67,0.72]
[1755398505926,3.18118637,190.7,190.64,19.00740194]
[1755398506228,0.69,190.73,190.67,0.72]
[1755398506419,3.18118637,190.7,190.64,18.28740194]
[1755398506616,3.18118637,190.7,190.64,19.00740194]
[1755398506820,3.18118637,190.67,190.64,0.72]
[1755398507028,0.12487851,190.74,190.64,3.18118637]
[1755398507327,3.18118637,190.71,190.66,3.18118637]
[1755398507518,3.18118637,190.71,190.67,0.72]
[1755398507713,0.69,190.73,190.68,3.90118637]
[1755398507920,0.12487851,190.74,190.69,3.90118637]
[1755398508118,3.18118637,190.73,190.67,18.28740194]
[1755398508500,6.05765508,190.74,190.67,18.28740194]
[1755398508501,0.81487851,190.74,190.68,3.90118637]
[1755398508699,3.30606488,190.74,190.68,3.90118637]
[1755398510929,0.12487851,190.74,190.73,3.18118637]
[1755398511107,0.12487851,190.74,190.73,3.90118637]
[1755398511305,0.12487851,190.74,190.73,0.72]
[1755398511525,0.12487851,190.74,190.73,3.90118637]
[1755398512112,0.12487851,190.74,190.73,0.72]
[1755398512518,0.12487851,190.74,190.73,3.90118637]
[1755398512729,0.12487851,190.74,190.73,6.11018348]
[1755398513945,0.12487851,190.74,190.73,26.45941273]
[1755398514916,0.12487851,190.74,190.73,21.06922925]
[1755398515121,0.12487851,190.74,190.73,26.45941273]
[1755398519013,0.12487851,190.74,190.73,52.45941273]
[1755398519213,2.87506199,190.82,190.74,15.10621557]
[1755398519413,2.87506199,190.82,190.75,0.72]
[1755398519644,2.87506199,190.82,190.77,5.39018348]
[1755398519948,6.08018348,190.82,190.77,11.35205513]
[1755398520323,6.08018348,190.82,190.76,15.10621557]
[1755398520641,0.06,190.78,190.77,6.11018348]
[1755398521317,0.06,190.78,190.76,5.39018348]
[1755398521516,0.06,190.78,190.76,6.11018348]
[1755398521711,0.06,190.78,190.76,5.24210811]
[1755398521912,0.69,190.77,190.73,0.72]
[1755398522136,0.06,190.78,190.74,5.39018348]
[1755398522436,0.06,190.78,190.75,20.49639905]
[1755398522614,0.75,190.78,190.75,20.49639905]
[1755398522817,0.06,190.78,190.75,20.49639905]
[1755398523040,0.06,190.78,190.75,21.21639905]
[1755398523613,0.06,190.78,190.75,25.73877786]
[1755398523837,0.06,190.78,190.76,6.11018348]
[1755398524441,0.06,190.78,190.76,5.39018348]
[1755398524611,0.06,190.78,190.77,6.11018348]
[1755398525139,0.06,190.78,190.77,0.72]
[1755398525442,0.06,190.78,190.77,6.11018348]
[1755398525637,0.06,190.78,190.77,11.35209782]
[1755398526136,0.06,190.78,190.77,26.45831339]
[1755398527248,0.06,190.78,190.77,26.98250482]
[1755398528251,0.06,190.78,190.77,42.77250482]
[1755398528420,0.06,190.78,190.77,81.61250482]
[1755398531435,0.06,190.78,190.77,88.81250482]
[1755398531651,0.69,190.86,190.81,15.10621557]
[1755398531943,0.69,190.88,190.84,5.39018348]
[1755398532146,0.69,190.87,190.84,5.39018348]
[1755398532446,13.09113654,190.97,190.82,39.54]
[1755398532447,0.69,190.91,190.86,5.39018348]
[1755398532646,0.69,190.9,190.86,5.39018348]
[1755398532851,6.08018348,190.9,190.85,10.6298794]
[1755398533049,0.69,190.93,190.87,15.10621557]
[1755398533223,0.69,190.93,190.88,5.39018348]
[1755398533224,6.08018348,190.93,190.88,5.39018348]
[1755398533540,0.69,190.92,190.89,5.39018348]
[1755398533942,0.69,190.91,190.88,5.39018348]
[1755398534148,0.69,190.91,190.87,15.10621557]
[1755398534364,5.2369548,190.96,190.85,38.8]
[1755398534365,6.05018348,190.9,190.85,38.8]
[1755398534648,0.06,190.91,190.87,3.17168233]
[1755398534855,0.72,190.91,190.89,3.17168233]
[1755398535024,0.72,190.91,190.88,42.03168233]
[1755398535231,0.66,190.9,190.85,0.5239717]
[1755398535431,0.66,190.9,190.86,3.17168233]
[1755398535752,3.17168233,190.87,190.79,3.17168233]
[1755398535924,5.29819917,190.91,190.81,3.17168233]
[1755398535925,3.83168233,190.86,190.81,3.17168233]
[1755398536119,0.66,190.85,190.81,3.17168233]
[1755398536422,0.72,190.91,190.84,3.17168233]
[1755398536731,3.17168233,190.9,190.84,42.05168233]
[1755398536945,3.83168233,190.89,190.84,38.88]
[1755398537148,3.17168233,190.87,190.84,38.88]
[1755398537324,0.66,190.86,190.84,38.88]
[1755398537648,3.83168233,190.85,190.81,38.9]
[1755398537952,3.83168233,190.84,190.81,38.9]
[1755398538252,0.66,190.84,190.81,38.9]
[1755398538676,3.17168233,190.85,190.81,38.9]
[1755398538829,0.66,190.83,190.81,38.9]
[1755398539028,0.66,190.83,190.79,8.41293406]
[1755398539349,0.66,190.83,190.79,3.17168233]
[1755398539553,0.66,190.82,190.79,3.17168233]
[1755398539736,0.66,190.83,190.79,3.17168233]
[1755398539956,0.66,190.83,190.78,44.80146673]
[1755398539957,0.06,190.91,190.82,18.2778979]
[1755398540136,0.66,190.89,190.85,3.17168233]
[1755398541070,0.66,190.88,190.85,3.17168233]
[1755398541534,0.66,190.88,190.84,8.411666]
[1755398541730,0.72,190.91,190.86,3.17168233]
[1755398541948,0.72,190.91,190.85,15.78621557]
[1755398541949,0.72,190.91,190.87,3.85168233]
[1755398542167,0.66,190.9,190.85,18.2778979]
[1755398542341,3.83168233,190.9,190.85,18.2778979]
[1755398542538,0.06,190.91,190.86,3.85168233]
[1755398542973,0.06,190.91,190.86,9.09109768]
[1755398543331,0.72,190.91,190.86,9.09109768]
[1755398543958,0.66,190.9,190.86,0.68]
[1755398544155,0.66,190.9,190.86,3.85168233]
[1755398544744,0.06,190.91,190.87,0.68]
[1755398545062,0.72,190.91,190.87,0.68]
[1755398545847,0.72,190.91,190.87,3.85168233]
[1755398546256,0.72,190.91,190.87,0.68]
[1755398546466,0.72,190.91,190.87,3.85168233]
[1755398546765,0.06,190.91,190.87,3.85168233]
[1755398546960,0.06,190.91,190.87,3.17168233]
[1755398547155,0.06,190.91,190.88,0.68]
[1755398547347,0.06,190.91,190.88,3.85168233]
[1755398547653,0.06,190.91,190.88,3.17168233]
[1755398548055,0.06,190.91,190.89,3.85168233]
[1755398548647,0.06,190.91,190.89,0.68]
[1755398549162,0.06,190.91,190.88,3.17168233]
[1755398549661,0.06,190.91,190.88,3.85168233]
[1755398549961,0.06,190.91,190.87,8.41079652]
[1755398550168,0.06,190.91,190.87,9.09079652]
[1755398550347,0.06,190.91,190.88,0.68]
[1755398550549,0.06,190.91,190.87,3.17168233]
[1755398550754,0.06,190.91,190.87,3.85168233]
[1755398551471,0.06,190.91,190.87,3.17168233]
[1755398551673,0.72,190.91,190.87,3.85168233]
[1755398551862,0.72,190.91,190.85,15.10621557]
[1755398551863,3.83168233,190.9,190.85,15.10621557]
[1755398552177,3.83168233,190.89,190.83,3.17168233]
[1755398552544,3.83168233,190.89,190.84,3.17168233]
[1755398552873,0.66,190.88,190.82,44.80052812]
[1755398553057,0.06,190.91,190.87,3.17168233]
[1755398553257,3.89168233,190.91,190.85,3.85168233]
[1755398553655,3.83168233,190.9,190.85,0.68]
[1755398553861,3.17168233,190.88,190.83,0.68]
[1755398554051,3.83168233,190.89,190.83,9.09191453]
[1755398554250,0.66,190.89,190.84,3.17168233]
[1755398554452,3.17168233,190.9,190.84,3.17168233]
[1755398554654,3.83168233,190.89,190.84,3.17168233]
[1755398554871,3.17168233,190.89,190.84,3.17168233]
[1755398555078,3.17168233,190.86,190.82,39.56]
[1755398555281,5.2981574,190.91,190.79,0.68]
[1755398555282,3.17168233,190.83,190.79,0.68]
[1755398555448,3.17168233,190.8,190.78,0.03]
[1755398555776,0.66,190.82,190.78,0.03]
[1755398555777,3.17168233,190.79,190.78,0.03]
[1755398555956,64.68,190.88,190.78,0.03]
[1755398555957,3.83168233,190.81,190.78,0.03]
[1755398556361,3.83168233,190.8,190.78,0.03]
[1755398558257,3.17168233,190.8,190.78,0.03]
[1755398558877,0.66,190.83,190.78,0.03]
[1755398559177,0.66,190.85,190.79,0.68]
[1755398559363,0.66,190.85,190.8,3.17168233]
[1755398559564,3.83168233,190.85,190.8,3.85168233]
[1755398559954,0.66,190.85,190.8,3.85168233]
[1755398560160,0.66,190.84,190.8,0.68]
[1755398560360,3.17168233,190.85,190.8,0.68]
[1755398560561,3.17168233,190.85,190.79,3.17168233]
[1755398560562,3.83168233,190.88,190.82,3.17168233]
[1755398560868,3.83168233,190.87,190.82,3.17168233]
[1755398561072,3.17168233,190.87,190.82,3.17168233]
[1755398561265,3.83168233,190.87,190.82,3.85168233]
[1755398561570,3.83168233,190.87,190.81,3.17168233]
[1755398561774,3.83168233,190.87,190.83,0.68]
[1755398562580,3.83168233,190.86,190.8,3.85168233]
[1755398562873,6.04591061,190.86,190.8,0.68]
[1755398563079,6.04591061,190.86,190.8,6.06591061]
[1755398563755,11.28536504,190.86,190.8,6.06591061]
[1755398563988,5.38591061,190.83,190.78,44.05591061]
[1755398564170,6.04591061,190.83,190.78,44.05591061]
[1755398564378,6.04591061,190.83,190.78,44.76591061]
[1755398564785,0.66,190.83,190.79,0.71]
[1755398564966,0.66,190.83,190.78,44.05591061]
[1755398564967,5.38591061,190.83,190.78,44.05591061]
[1755398565156,0.69,190.82,190.78,38.67]
[1755398565380,0.69,190.86,190.8,5.38591061]
[1755398565572,10.62517363,190.87,190.82,5.38591061]
[1755398565779,6.07591061,190.86,190.81,6.09591061]
[1755398566379,0.06,190.91,190.86,15.10621557]
[1755398566580,0.06,190.91,190.87,44.00591061]
[1755398567154,0.06,190.91,190.87,44.71591061]
[1755398567766,0.06,190.91,190.88,6.09591061]
[1755398568582,0.06,190.91,190.88,5.38591061]
[1755398568770,0.06,190.91,190.87,44.00591061]
[1755398569094,0.06,190.91,190.88,6.09591061]
[1755398569990,0.06,190.91,190.88,5.38591061]
[1755398570370,0.06,190.91,190.88,6.09591061]
[1755398570699,0.06,190.91,190.89,0.71]
[1755398570997,0.06,190.91,190.87,44.71591061]
[1755398571205,0.06,190.91,190.88,0.71]
[1755398571397,0.06,190.91,190.88,6.09591061]
[1755398571598,0.06,190.91,190.89,0.71]
[1755398571803,0.06,190.91,190.89,5.94856013]
[1755398572103,0.06,190.91,190.9,5.38591061]
[1755398572405,0.06,190.91,190.9,6.09591061]
[1755398573879,0.06,190.91,190.89,10.62447074]
[1755398574079,0.06,190.91,190.9,0.71]
[1755398574400,0.06,190.91,190.9,6.09591061]
[1755398574607,0.06,190.91,190.9,5.38591061]
[1755398574794,0.06,190.91,190.9,21.72596064]
[1755398575875,0.06,190.91,190.9,26.96430532]
[1755398576295,0.06,190.93,190.92,41.10621557]
[1755398576507,0.06,190.93,190.92,85.63590577]
[1755398576805,0.06,190.93,190.92,86.34590577]
[1755398577778,0.06,190.93,190.92,91.5837017]
[1755398578109,0.06,190.95,190.93,15.10621557]
[1755398578305,0.06,190.95,190.94,21.01585091]
[1755398578610,0.06,190.95,190.94,37.51585091]
[1755398578780,1e-08,190.95,190.94,37.51585091]
[1755398579212,1e-08,190.95,190.94,44.71585091]
[1755398579805,1e-08,190.95,190.94,49.95309821]
[1755398580009,1e-08,190.95,190.94,54.07268167]
[1755398580213,0.69,191.09,190.98,26.0]
[1755398580416,0.69,191.09,191.06,5.38591061]
[1755398580717,0.69,191.09,191.07,38.56]
[1755398580920,0.69,191.11,191.08,5.38591061]
[1755398581078,0.69,191.15,191.1,5.38591061]
[1755398581277,0.69,191.15,191.12,5.38591061]
[1755398581701,0.69,191.14,191.12,5.38591061]
[1755398582004,0.69,191.16,191.12,5.38591061]
[1755398582217,0.69,191.16,191.12,15.10621557]
[1755398582406,0.69,191.16,191.13,5.38591061]
[1755398582715,0.69,191.16,191.14,38.6]
[1755398583206,6.07591061,191.15,191.07,0.71]
[1755398583405,0.69,191.14,191.08,38.6]
[1755398583611,5.38591061,191.1,191.08,38.6]
[1755398583907,5.38591061,191.11,191.08,38.6]
[1755398584484,0.69,191.1,191.05,5.38591061]
[1755398584790,0.69,191.12,191.07,5.38591061]
[1755398585002,6.07591061,191.12,191.07,5.38591061]
[1755398585206,6.07591061,191.11,191.06,43.98591061]
[1755398585423,5.38591061,191.07,191.02,2.7]
[1755398585619,0.69,191.06,191.03,38.6]
[1755398585818,6.07591061,191.09,191.04,0.71]
[1755398586024,6.07591061,191.12,191.07,5.38591061]
[1755398586221,6.07591061,191.11,191.07,38.64]
[1755398586404,0.69,191.1,191.07,38.64]
[1755398586922,5.38591061,191.11,191.07,38.64]
[1755398587127,0.69,191.09,191.07,38.64]
[1755398587631,5.38591061,191.11,191.07,38.64]
[1755398587830,0.69,191.11,191.07,38.64]
[1755398588410,6.07591061,191.11,191.07,38.64]
[1755398588626,6.07591061,191.1,191.07,38.64]
[1755398589021,5.38591061,191.11,191.07,38.64]
[1755398589411,6.07591061,191.11,191.07,38.64]
[1755398589813,0.69,191.11,191.07,39.35]
[1755398590122,5.38591061,191.12,191.07,44.73591061]
[1755398590323,5.38591061,191.12,191.08,0.71]
[1755398590635,6.07591061,191.12,191.07,38.64]
[1755398590832,6.07591061,191.12,191.07,39.35]
[1755398591014,6.07591061,191.11,191.07,38.64]
[1755398591213,0.69,191.11,191.07,39.35]
[1755398592714,5.38591061,191.12,191.08,0.71]
[1755398593109,5.38591061,191.15,191.09,5.38591061]
[1755398593308,0.75,191.17,191.08,0.71]
[1755398593309,6.13591061,191.17,191.11,5.38591061]
[1755398593533,5.38591061,191.16,191.11,5.38591061]
[1755398593746,5.38591061,191.14,191.1,38.56]
[1755398593935,0.69,191.13,191.1,38.56]
[1755398594137,5.38591061,191.13,191.11,38.56]
[1755398594313,6.07591061,191.13,191.11,38.56]
[1755398594835,5.38591061,191.15,191.11,38.56]
[1755398595032,5.38591061,191.15,191.11,39.25]
[1755398595719,0.68,191.15,191.11,38.56]
[1755398595932,6.06591061,191.15,191.11,38.56]
[1755398596126,5.38591061,191.14,191.11,38.56]
[1755398596813,5.38591061,191.12,191.06,15.10621557]
[1755398597031,5.38591061,191.14,191.08,20.49212618]
[1755398597233,0.68,191.16,191.1,10.6186696]
[1755398597437,6.06591061,191.16,191.11,0.69]
[1755398597609,0.06,191.17,191.12,6.07591061]
[1755398597808,5.44591061,191.17,191.12,44.59591061]
[1755398598039,5.44591061,191.17,191.12,43.90591061]
[1755398598337,5.44591061,191.17,191.13,0.69]
[1755398599629,6.12591061,191.17,191.13,0.69]
[1755398599935,5.38591061,191.16,191.13,0.69]
[1755398600624,3.90368906,191.17,191.13,0.69]
[1755398600815,0.06,191.17,191.14,0.69]
[1755398601021,0.06,191.17,191.13,8.39572702]
[1755398601217,3.90368906,191.17,191.13,15.79621557]
[1755398602237,3.90368906,191.17,191.14,0.69]
[1755398602238,3.22368906,191.17,191.14,0.69]
[1755398602433,3.22368906,191.17,191.15,38.44]
[1755398603824,3.90368906,191.17,191.15,38.44]
[1755398604231,3.22368906,191.17,191.15,38.44]
[1755398604552,3.84368906,191.16,191.13,38.4]
[1755398604723,3.16368906,191.14,191.12,38.4]
[1755398604918,3.84368906,191.13,191.11,0.03]
[1755398605115,3.16368906,191.12,191.11,0.03]
[1755398606342,3.84368906,191.12,191.11,0.03]
[1755398607231,3.16368906,191.12,191.11,0.03]
[1755398607421,3.84368906,191.12,191.11,0.03]
[1755398608844,9.07600383,191.12,191.11,0.03]
[1755398609446,0.68,191.15,191.11,0.03]
[1755398609761,3.16368906,191.14,191.11,0.03]
[1755398609923,3.84368906,191.16,191.12,0.69]
[1755398610129,3.16368906,191.15,191.12,0.69]
[1755398610328,3.16368906,191.15,191.11,0.03]
[1755398610528,3.16368906,191.15,191.11,0.72]
[1755398611446,3.16368906,191.15,191.11,5.95252519]
[1755398612619,3.16368906,191.15,191.12,38.46]
[1755398614329,0.06,191.17,191.13,0.69]
[1755398614558,3.90368906,191.17,191.13,0.69]
[1755398614934,0.68,191.16,191.12,46.85591362]
[1755398615142,3.84368906,191.16,191.12,44.38222456]
[1755398615346,3.16368906,191.16,191.13,0.69]
[1755398615557,3.16368906,191.15,191.12,118.36]
[1755398615757,3.84368906,191.16,191.12,123.59219499]
[1755398615964,3.84368906,191.16,191.12,124.28219499]
[1755398616262,0.06,191.17,191.16,15.10621557]
[1755398616426,0.06,191.17,191.16,53.48621557]
[1755398616628,0.06,191.17,191.16,57.33990463]
[1755398616826,0.06,191.17,191.16,62.57112455]
[1755398619837,0.06,191.17,191.16,59.40743549]
[1755398620141,0.06,191.17,191.16,62.57112455]
[1755398621252,0.06,191.17,191.16,142.47112455]
[1755398622248,0.06,191.17,191.16,139.30743549]
[1755398622839,0.06,191.19,191.16,139.30743549]
[1755398622840,0.06,191.19,191.16,75.19743549]
[1755398623068,0.06,191.19,191.18,15.10621557]
[1755398623248,0.06,191.19,191.18,53.64621557]
[1755398623460,0.06,191.19,191.18,54.33621557]
[1755398623759,0.06,191.19,191.18,56.43084057]
[1755398624445,0.06,191.19,191.18,61.66151323]
[1755398624855,3.22368906,191.19,191.18,21.02688823]
[1755398625038,3.22368906,191.19,191.18,59.52688823]
[1755398625236,0.06,191.19,191.18,59.52688823]
[1755398626638,0.06,191.19,191.18,60.04995549]
[1755398626847,0.06,191.19,191.18,59.52688823]
[1755398628366,0.06,191.19,191.18,62.69057729]
[1755398628568,0.06,191.19,191.18,59.52688823]
[1755398629654,0.06,191.19,191.18,62.69057729]
[1755398631451,0.06,191.19,191.18,62.00057729]
[1755398631651,0.06,191.19,191.18,20.33688823]
[1755398631864,0.06,191.19,191.18,58.79688823]
[1755398632774,0.06,191.19,191.18,62.68057729]
[1755398633165,0.06,191.21,191.2,56.89621557]
[1755398633356,0.06,191.21,191.2,99.02291718]
[1755398633556,0.06,191.21,191.2,99.74291718]
[1755398634275,0.06,191.23,191.2,99.74291718]
[1755398634276,0.06,191.23,191.21,15.10621557]
[1755398634573,0.71,191.35,191.27,15.10621557]
[1755398634778,11.37676788,191.51,191.26,41.79]
[1755398634779,8.21307882,191.51,191.34,18.95368906]
[1755398634952,0.71,191.5,191.43,15.10621557]
[1755398635151,0.71,191.52,191.46,3.16368906]
[1755398635351,3.16368906,191.48,191.47,38.84]
[1755398635561,0.71,191.48,191.44,15.10621557]
[1755398635770,3.16368906,191.45,191.43,38.86]
[1755398635974,3.16368906,191.45,191.3,44.432828]
[1755398635975,3.87368906,191.44,191.38,38.88]
[1755398636173,26.0,191.48,191.38,38.88]
[1755398636174,3.16368906,191.39,191.38,38.88]
[1755398636475,3.87368906,191.39,191.36,38.88]
[1755398636689,3.16368906,191.4,191.36,38.88]
[1755398636877,3.87368906,191.43,191.39,15.10621557]
[1755398637186,0.71,191.43,191.4,38.92]
[1755398637365,3.87368906,191.42,191.4,38.92]
[1755398638262,3.16368906,191.43,191.4,38.92]
[1755398638464,3.87368906,191.43,191.4,38.92]
[1755398638791,5.35405606,191.41,191.4,38.92]
[1755398638953,6.06405606,191.41,191.38,38.88]
[1755398639155,5.35405606,191.39,191.33,38.9]
[1755398639454,6.06405606,191.38,191.34,15.10621557]
[1755398639651,0.71,191.38,191.35,38.92]
[1755398639874,6.06405606,191.38,191.35,38.92]
[1755398640079,5.35405606,191.39,191.35,38.92]
[1755398640285,5.35405606,191.38,191.35,38.92]
[1755398640482,0.71,191.37,191.35,38.92]
[1755398640658,0.71,191.36,191.35,38.92]
[1755398640981,5.35405606,191.38,191.35,38.92]
[1755398641155,6.06405606,191.37,191.35,38.92]
[1755398641490,0.71,191.36,191.35,38.92]
[1755398641858,5.35405606,191.38,191.35,38.92]
[1755398642267,0.71,191.37,191.35,38.92]
[1755398642585,26.0,191.46,191.35,38.92]
[1755398642763,26.0,191.46,191.37,5.35405606]
[1755398642764,5.35405606,191.42,191.37,5.35405606]
[1755398643084,0.71,191.46,191.41,5.35405606]
[1755398643256,0.71,191.45,191.4,5.35405606]
[1755398643454,0.71,191.45,191.39,15.10621557]
[1755398643455,0.71,191.45,191.41,44.21405606]
[1755398643678,0.71,191.5,191.44,5.35405606]
[1755398643870,0.71,191.53,191.48,5.35405606]
[1755398644086,5.35405606,191.53,191.48,44.23405606]
[1755398644392,0.71,191.52,191.48,44.23405606]
[1755398644761,5.35405606,191.53,191.48,38.88]
[1755398644762,0.71,191.51,191.48,38.88]
[1755398645169,6.06405606,191.54,191.49,5.35405606]
[1755398645367,0.71,191.56,191.5,5.35405606]
[1755398645572,6.06405606,191.56,191.51,38.88]
[1755398645864,0.71,191.58,191.51,38.88]
[1755398646085,0.71,191.57,191.52,5.35405606]
[1755398646282,0.71,191.56,191.51,44.23405606]
[1755398646459,5.35405606,191.57,191.51,39.6]
[1755398646787,5.35405606,191.57,191.52,5.2213868]
[1755398647094,5.35405606,191.57,191.53,0.72]
[1755398647275,0.71,191.58,191.53,0.72]
[1755398647475,5.35405606,191.56,191.54,39.02]
[1755398647672,0.71,191.55,191.54,39.02]
[1755398647888,5.35405606,191.56,191.54,39.02]
[1755398648107,5.35405606,191.57,191.54,39.02]
[1755398648273,5.35405606,191.56,191.54,39.02]
[1755398648669,0.71,191.57,191.54,39.02]
[1755398648976,5.35405606,191.56,191.54,39.02]
[1755398649594,0.71,191.6,191.54,39.02]
[1755398649789,5.35405606,191.58,191.54,44.24078872]
[1755398649995,0.71,191.58,191.54,44.24078872]
[1755398650169,5.35405606,191.57,191.54,5.22078872]
[1755398650693,5.35405606,191.57,191.54,44.16078872]
[1755398651388,5.35405606,191.56,191.54,38.94]
[1755398651597,6.06405606,191.55,191.54,38.94]
[1755398652274,5.35405606,191.55,191.54,38.94]
[1755398652873,6.06405606,191.55,191.54,38.94]
[1755398653089,5.35405606,191.55,191.54,38.94]
[1755398653473,0.71,191.58,191.54,38.94]
[1755398653799,5.35405606,191.58,191.54,44.88079462]
[1755398654088,5.35405606,191.58,191.55,0.72]
[1755398654287,0.71,191.61,191.55,0.72]
[1755398654473,5.35405606,191.58,191.55,0.72]
[1755398654675,5.35405606,191.59,191.56,0.7]
[1755398654893,5.35405606,191.59,191.57,38.88]
[1755398655075,0.72,191.66,191.58,0.7]